bitfinex/quotes_ETHUSD_20260302
["timestamp","ask_amount","ask_price","bid_price","bid_amount"]
[1772473823314,3.52188252,2034.7,2033.3,1.22946788]
[1772473823514,3.52188252,2034.4,2033.2,1.23054281]
[1772473823736,1.88011045,2034.5,2033.2,1.23058336]
[1772473823737,3.52188252,2034.2,2033.2,1.23058336]
[1772473824020,3.52188252,2034.2,2033.2,0.001]
[1772473824021,2.45804478,2034.1,2033.2,0.001]
[1772473825959,1.22904478,2034.1,2033.2,0.001]
[1772473826121,1.228,2034.0,2033.2,0.001]
[1772473826322,3.52188252,2034.6,2033.2,1.20616359]
[1772473826562,3.69451271,2034.4,2033.2,0.001]
[1772473827522,1.228,2034.3,2033.2,0.001]
[1772473827718,3.69451271,2034.2,2033.2,0.001]
[1772473828567,3.69451271,2034.0,2033.2,0.001]
[1772473828771,3.69451271,2033.8,2033.2,0.001]
[1772473828978,3.69451271,2033.6,2033.2,0.001]
[1772473829498,3.69451271,2033.6,2033.4,0.001]
[1772473829640,1.227,2033.5,2033.4,0.001]
[1772473830477,4.92151271,2033.5,2033.4,0.001]
[1772473830699,6.15192013,2033.5,2033.4,0.001]
[1772473831180,4.92392013,2033.5,2033.4,0.001]
[1772473831348,1.229,2033.5,2033.4,0.001]
[1772473831678,1.23,2033.5,2033.2,0.001]
[1772473832173,1.231,2033.4,2033.2,0.001]
[1772473832490,3.69401271,2033.6,2033.2,0.001]
[1772473832685,1.22940742,2033.5,2033.2,0.001]
[1772473832845,2.46040742,2033.5,2033.2,0.001]
[1772473833185,3.69401271,2034.0,2033.2,0.001]
[1772473833340,1.22898436,2034.2,2033.2,0.001]
[1772473833541,1.232,2033.9,2033.2,0.001]
[1772473834372,3.69401271,2033.8,2033.2,0.001]
[1772473834772,3.69401271,2033.6,2033.2,0.001]
[1772473834978,1.232,2033.5,2033.2,0.001]
[1772473835478,1.232,2033.4,2033.2,0.001]
[1772473835847,1.232,2033.3,2033.2,0.001]
[1772473836854,1.22934697,2033.6,2033.2,0.001]
[1772473837078,1.233,2033.5,2033.2,0.001]
[1772473837466,1.22934697,2033.6,2033.2,0.001]
[1772473837779,1.233,2033.5,2033.2,0.001]
[1772473839086,1.235,2033.4,2033.2,0.001]
[1772473839892,1.236,2033.3,2033.2,0.001]
[1772473840211,1.236,2033.3,2033.0,0.001]
[1772473840375,3.69351271,2033.2,2032.2,1.41567997]
[1772473840574,3.69351271,2033.2,2032.2,2.64586552]
[1772473840799,3.69351271,2033.2,2032.2,2.64586685]
[1772473841007,1.22963834,2033.2,2032.2,2.64586685]
[1772473841404,1.236,2033.1,2032.2,2.64586685]
[1772473842217,4.91823525,2033.3,2032.2,2.64586685]
[1772473842218,0.002,2033.4,2032.2,2.64586685]
[1772473842523,8.61060341,2033.8,2032.9,0.001]
[1772473842524,0.002,2033.6,2032.9,0.001]
[1772473842693,3.69351271,2033.8,2032.9,0.001]
[1772473842897,4.91629722,2034.1,2032.9,0.001]
[1772473842898,1.236,2033.7,2032.9,0.001]
[1772473843227,1.236,2033.6,2032.9,0.001]
[1772473844891,1.235,2033.5,2032.9,0.001]
[1772473846013,1.185827,2033.5,2032.9,0.001]
[1772473848382,3.69351271,2033.4,2032.4,0.10811415]
[1772473848697,3.69351271,2033.4,2032.2,1.23015033]
[1772473848883,4.92751271,2033.3,2032.2,1.23015033]
[1772473849308,2.46357714,2033.3,2032.1,4.92177551]
[1772473849511,1.234,2033.2,2032.2,0.09462601]
[1772473849715,1.234,2033.1,2032.2,0.09462601]
[1772473849905,1.234,2033.1,2032.1,4.92177551]
[1772473850506,3.69351271,2033.3,2032.1,4.92177551]
[1772473850813,3.69351271,2033.6,2032.3,0.08193229]
[1772473851016,1.15106771,2033.2,2032.3,0.08193229]
[1772473851785,1.233,2033.1,2032.4,1.23007282]
[1772473852018,1.233,2033.2,2032.4,1.23007282]
[1772473852206,3.69351271,2033.6,2032.4,1.23007282]
[1772473852402,1.233,2033.5,2032.5,0.065536]
[1772473852596,3.73647886,2033.9,2032.6,0.02605815]
[1772473852800,4.96565364,2033.9,2032.6,0.02605815]
[1772473852998,1.232,2033.8,2032.6,0.02605815]
[1772473853597,4.96647886,2033.8,2032.6,0.02605815]
[1772473853999,1.22928652,2033.7,2032.7,1.22989127]
[1772473854199,3.73447886,2033.8,2032.7,1.22989127]
[1772473854518,1.23121102,2033.9,2032.8,0.09217371]
[1772473854519,0.002,2033.9,2032.8,0.09217371]
[1772473854750,1.232,2033.8,2032.8,0.09217371]
[1772473855654,0.002,2033.3,2032.9,0.08551731]
[1772473855852,1.129,2033.7,2032.9,0.08551731]
[1772473856043,0.002,2033.9,2033.0,1.22970978]
[1772473856044,0.002,2033.5,2033.0,1.22970978]
[1772473856223,1.231,2033.7,2033.0,1.22970978]
[1772473857248,1.233,2033.8,2033.0,1.22970978]
[1772473857623,3.73447886,2033.7,2033.0,1.22970978]
[1772473857826,1.231,2033.6,2033.0,1.22970978]
[1772473858054,0.002,2033.8,2032.9,4.91883915]
[1772473858369,0.002,2033.8,2032.9,4.98445472]
[1772473858529,1.233,2033.8,2032.9,4.91883915]
[1772473858729,1.233,2033.8,2033.0,0.06585947]
[1772473859855,1.232,2033.8,2033.0,0.06585947]
[1772473860059,1.232,2033.8,2033.1,1.2296493]
[1772473860460,3.76928664,2033.8,2033.1,1.2296493]
[1772473860665,1.23,2033.7,2033.1,1.2296493]
[1772473861257,3.76728664,2033.6,2032.6,4.91978011]
[1772473861636,1.229,2033.6,2032.7,0.04720126]
[1772473861844,0.21635404,2033.6,2032.9,3.4776435]
[1772473862042,3.63388351,2034.0,2033.0,1.22970978]
[1772473862043,1.229,2033.8,2033.0,1.22970978]
[1772473863245,1.229,2033.8,2033.0,4.70735328]
[1772473863842,1.229,2033.9,2033.0,4.70735328]
[1772473864046,1.22902238,2034.2,2033.0,1.22970978]
[1772473864245,1.23,2034.7,2033.2,3.4776435]
[1772473864456,1.22874275,2034.6,2033.2,3.4776435]
[1772473864645,1.228,2034.5,2033.2,3.4776435]
[1772473864847,4.86461148,2034.7,2033.2,3.4776435]
[1772473865072,4.86461148,2034.7,2033.4,3.4776435]
[1772473865276,1.228,2034.6,2033.4,3.4776435]
[1772473865472,4.86461148,2034.7,2033.4,3.4776435]
[1772473865674,1.228,2034.6,2033.6,3.4776435]
[1772473866252,0.002,2034.7,2033.8,3.4776435]
[1772473866580,0.98,2035.0,2033.9,3.4776435]
[1772473867278,1.227,2035.0,2033.9,3.4776435]
[1772473868081,1.2303847,2035.2,2033.9,3.4776435]
[1772473868280,0.002,2034.4,2034.0,1.22910521]
[1772473868593,0.002,2035.2,2034.1,3.4776435]
[1772473868881,4.9139716,2035.9,2034.6,3.4776435]
[1772473868882,1.22999205,2035.9,2034.6,3.4776435]
[1772473869053,2.45482714,2036.2,2034.8,3.4776435]
[1772473869377,2.45482714,2036.2,2034.9,3.4776435]
[1772473869814,2.6700128,2036.8,2034.7,1.022]
[1772473869815,1.22655233,2038.3,2036.2,3.4776435]
[1772473869961,1.22655233,2038.3,2035.5,2.6167327]
[1772473869962,3.63388351,2038.1,2036.9,0.62985278]
[1772473870167,3.63388351,2037.7,2036.0,0.796]
[1772473870468,3.63388351,2037.5,2036.1,1.22783753]
[1772473870684,1.226,2037.4,2036.2,3.4776435]
[1772473870998,4.86042531,2038.3,2036.8,0.065536]
[1772473871158,4.86042531,2038.3,2036.7,3.4776435]
[1772473871159,3.63388351,2038.1,2036.9,3.4776435]
[1772473871470,4.85988351,2038.0,2036.5,3.4284705]
[1772473871979,4.85988351,2037.9,2036.5,3.4284705]
[1772473872176,3.63388351,2037.9,2036.5,3.4284705]
[1772473872491,2.45281322,2037.8,2036.6,1.22753608]
[1772473873189,3.63388351,2037.6,2036.3,1.22771693]
[1772473873407,3.63388351,2037.6,2036.3,7.72803674]
[1772473873881,4.85988351,2037.6,2036.4,3.4776435]
[1772473874491,2.6700128,2037.8,2036.5,5.01106253]
[1772473874665,2.45187343,2037.7,2036.5,5.01106253]
[1772473874988,1.225,2037.6,2036.5,5.01106253]
[1772473875192,2.45180346,2037.9,2036.7,3.78346617]
[1772473876068,1.226,2037.8,2036.7,3.78346617]
[1772473876395,3.91377297,2038.2,2036.8,1.22741555]
[1772473876569,1.225,2038.0,2036.8,1.22741555]
[1772473877000,3.91377297,2038.2,2036.9,0.065536]
[1772473877199,1.227,2038.2,2036.9,3.84900217]
[1772473877404,3.97541375,2038.1,2036.9,0.065536]
[1772473877602,3.97541375,2037.9,2036.8,1.22741555]
[1772473878418,1.225,2037.8,2036.8,1.22741555]
[1772473878608,0.002,2038.2,2036.8,3.85432568]
[1772473878811,1.225,2037.9,2036.8,3.85432568]
[1772473879013,3.97541375,2037.7,2036.5,0.065536]
[1772473879183,1.22663264,2038.1,2036.5,3.85432568]
[1772473879384,1.22663264,2038.1,2036.9,3.78878968]
[1772473879614,1.22663264,2038.1,2036.6,1.023]
[1772473879615,1.22567044,2039.7,2037.4,0.14948499]
[1772473879811,1.22567044,2039.7,2038.1,3.78878968]
[1772473879812,3.09554963,2039.5,2038.1,3.78878968]
[1772473879998,2.63121776,2039.1,2038.1,3.78878968]
[1772473880204,2.63121776,2039.1,2037.7,3.78878968]
[1772473880519,1.87154963,2039.3,2037.7,3.78878968]
[1772473880824,0.002,2038.0,2037.9,3.78878968]
[1772473881111,0.002,2038.5,2038.0,3.78878968]
[1772473881683,1.223,2039.0,2038.0,3.78878968]
[1772473881885,1.22597096,2039.2,2038.0,3.78878968]
[1772473882112,1.223,2039.1,2038.0,3.78878968]
[1772473882609,4.90388387,2039.4,2038.2,3.78878968]
[1772473882811,1.222,2039.2,2038.2,3.78878968]
[1772473882988,4.90388387,2039.4,2038.0,1.22665031]
[1772473883183,3.31157466,2039.3,2037.9,1.22672332]
[1772473883392,2.08957466,2039.2,2037.7,1.22684198]
[1772473883814,2.08957466,2039.2,2037.6,1.22689071]
[1772473884015,2.0898917,2039.1,2037.6,5.01568039]
[1772473884312,3.3118917,2039.1,2037.7,3.78878968]
[1772473884521,1.222,2039.0,2037.7,3.78878968]
[1772473884740,1.222,2038.9,2037.8,1.22681322]
[1772473885044,1.221,2038.8,2037.9,3.78878968]
[1772473885517,1.221,2038.8,2037.5,4.90725291]
[1772473885518,3.31108027,2038.8,2037.5,5.01578354]
[1772473885723,2.09008027,2038.8,2037.5,5.01578354]
[1772473886238,4.90460542,2039.0,2037.6,3.78878968]
[1772473886541,4.90460542,2039.0,2037.7,3.78878968]
[1772473886718,6.12560542,2039.0,2037.9,3.78878968]
[1772473886919,6.99475722,2039.0,2037.8,1.22681322]
[1772473887120,6.99475722,2039.0,2037.5,8.6967306]
[1772473887121,2.0901518,2038.8,2037.6,1.22689085]
[1772473887440,4.90460542,2039.0,2037.7,3.78878968]
[1772473887649,1.221,2038.7,2037.7,3.78878968]
[1772473887821,4.90460542,2039.0,2037.7,3.78878968]
[1772473888023,1.221,2038.9,2037.7,3.78878968]
[1772473888427,4.90460542,2039.0,2037.7,3.78878968]
[1772473888628,1.221,2038.9,2037.7,3.78878968]
[1772473888942,1.22621149,2038.8,2037.9,3.78878968]
[1772473889115,2.44721149,2038.8,2037.9,3.78878968]
[1772473889717,1.22621149,2038.8,2037.9,3.78878968]
[1772473890555,1.22621149,2038.8,2037.8,1.22681322]
[1772473890715,1.22621149,2038.8,2037.7,4.90725291]
[1772473891540,3.31533539,2038.8,2037.7,1.22687343]
[1772473891931,2.08862322,2038.7,2037.5,5.01574105]
[1772473892666,1.221,2038.6,2037.5,5.01574105]
[1772473892970,1.22639195,2038.5,2037.5,5.01574105]
[1772473893145,1.221,2038.4,2037.6,3.78878968]
[1772473893327,1.221,2038.3,2037.6,3.78878968]
[1772473894363,1.221,2038.4,2037.6,3.78878968]
[1772473894542,1.22639195,2038.5,2037.6,3.78878968]
[1772473894746,2.44639195,2038.5,2037.6,3.78878968]
[1772473895060,0.002,2038.8,2037.8,3.78878968]
[1772473895251,1.22821161,2038.8,2037.8,3.78878968]
[1772473895452,0.002,2038.8,2037.8,3.78878968]
[1772473896541,1.2282165,2038.8,2037.8,3.78878968]
[1772473896749,0.002,2038.8,2037.8,3.78878968]
[1772473897056,0.002,2038.8,2038.1,3.78878968]
[1772473897267,0.002,2039.3,2038.2,3.78878968]
[1772473897454,1.22547063,2040.1,2038.8,3.78878968]
[1772473897767,4.52804084,2040.2,2039.0,3.78878968]
[1772473898470,1.22,2040.1,2039.0,3.78878968]
[1772473899166,1.22,2040.0,2039.2,3.78878968]
[1772473900096,1.22541436,2040.2,2039.2,3.78878968]
[1772473900290,1.22532463,2040.3,2039.3,3.78878968]
[1772473900715,4.89858955,2041.5,2039.7,3.78878968]
[1772473900996,2.08014301,2041.3,2039.9,3.78878968]
[1772473901161,2.44376974,2041.2,2040.0,1.22549019]
[1772473901585,1.219,2041.1,2040.0,1.22549019]
[1772473901793,2.44077526,2041.0,2039.6,1.22569481]
[1772473902092,1.219,2040.9,2039.6,3.78878968]
[1772473902309,3.665545,2041.2,2039.6,3.78878968]
[1772473902469,1.219,2041.1,2039.8,3.78878968]
[1772473902791,3.66231182,2041.1,2039.8,3.78878968]
[1772473903113,2.44331182,2041.0,2039.8,3.78878968]
[1772473903696,2.44394977,2040.9,2039.9,1.22555027]
[1772473903868,2.44394977,2040.9,2039.8,5.0143956]
[1772473904060,2.44394977,2040.9,2039.6,4.90290358]
[1772473904061,1.218,2040.8,2039.5,1.22579063]
[1772473904264,1.219,2040.7,2039.5,5.01458031]
[1772473904969,3.66578497,2040.9,2039.5,5.01458031]
[1772473905321,2.43828728,2040.8,2039.5,5.01458031]
[1772473905479,2.43828728,2040.6,2039.3,1.22586682]
[1772473905673,3.66084831,2040.5,2039.2,4.90374057]
[1772473905991,1.218,2040.4,2039.1,8.74750073]
[1772473907000,3.66084831,2040.5,2039.2,3.78878968]
[1772473907298,3.65096389,2040.4,2039.2,3.78878968]
[1772473907702,4.88244023,2040.3,2038.9,4.90452195]
[1772473907905,3.66444023,2040.3,2038.9,8.85998175]
[1772473908081,3.65713023,2040.2,2038.9,5.18161115]
[1772473908280,2.43913023,2040.1,2038.9,3.9554598]
[1772473908503,2.43913023,2040.2,2038.9,3.9554598]
[1772473908807,1.218,2040.0,2038.9,3.9554598]
[1772473909103,1.218,2039.9,2038.9,3.9554598]
[1772473909406,1.22531,2040.3,2038.9,3.9554598]
[1772473909407,1.218,2039.8,2038.9,3.9554598]
[1772473909610,3.66150494,2040.3,2038.9,3.9554598]
[1772473909910,3.66150494,2040.3,2039.1,3.9554598]
[1772473910113,1.218,2040.2,2039.1,3.9554598]
[1772473911517,1.218,2040.2,2038.6,3.13060637]
[1772473911518,2.430118,2040.1,2038.6,3.13060637]
[1772473911680,2.42698854,2039.7,2038.6,1.90430705]
[1772473911885,2.42698854,2039.5,2038.6,1.90430705]
[1772473913216,2.42698854,2039.5,2037.9,5.18216315]
[1772473913518,2.4237907,2039.3,2038.0,3.9554598]
[1772473914014,1.22597096,2039.2,2038.0,5.18213222]
[1772473914218,1.217,2039.1,2038.0,5.18213222]
[1772473916142,1.22597096,2039.2,2038.0,5.18213222]
[1772473916143,1.218,2039.0,2038.0,5.18213222]
[1772473916921,1.218,2039.0,2038.0,5.18214818]
[1772473917126,1.22597096,2039.3,2038.1,3.9554598]
[1772473917431,1.217,2039.2,2038.2,3.9554598]
[1772473917631,1.217,2039.1,2038.2,3.9554598]
[1772473918045,1.217,2039.5,2038.4,3.9554598]
[1772473918252,1.47053281,2040.2,2038.4,3.9554598]
[1772473918555,1.217,2040.0,2038.4,3.9554598]
[1772473919046,1.47053281,2040.2,2038.4,3.9554598]
[1772473919245,1.47053281,2040.2,2038.6,3.9554598]
[1772473919747,1.216,2040.0,2038.6,3.9554598]
[1772473919944,7.35737191,2040.7,2039.0,3.9554598]
[1772473920143,1.216,2040.6,2039.0,3.9554598]
[1772473921034,7.35737191,2040.7,2039.2,3.9554598]
[1772473921035,1.216,2040.5,2039.2,3.9554598]
[1772473921224,1.216,2040.5,2039.3,3.9554598]
[1772473921425,0.002,2040.7,2039.5,3.9554598]
[1772473921745,1.218,2040.7,2039.5,3.9554598]
[1772473921951,1.22512986,2040.6,2039.5,5.18119245]
[1772473922540,1.22512986,2040.6,2039.5,5.18124768]
[1772473922748,2.44340961,2040.4,2039.1,5.18144385]
[1772473923069,1.216,2040.3,2039.1,5.18144385]
[1772473923243,1.216,2040.2,2039.1,5.18147911]
[1772473923440,2.44340961,2040.3,2039.1,5.18147911]
[1772473923641,1.216,2040.2,2039.2,3.9554598]
[1772473924069,1.22543012,2040.1,2039.2,3.9554598]
[1772473924271,1.22543012,2040.1,2038.8,8.8601674]
[1772473924464,3.66482147,2040.1,2038.8,8.8601674]
[1772473924639,2.43939135,2039.9,2038.6,5.18178294]
[1772473924840,1.215,2039.8,2038.7,3.9554598]
[1772473925372,1.22543012,2040.1,2038.7,3.9554598]
[1772473925577,1.215,2040.0,2038.7,3.9554598]
[1772473925954,1.215,2039.9,2038.7,3.9554598]
[1772473926268,1.215,2039.8,2038.9,3.9554598]
[1772473926578,1.22543012,2040.1,2038.9,3.9554598]
[1772473926761,1.215,2039.8,2038.9,3.9554598]
[1772473927355,1.22543012,2040.1,2038.9,3.9554598]
[1772473927573,1.214,2039.7,2038.9,3.9554598]
[1772473928145,4.9017205,2040.4,2039.0,5.18155102]
[1772473928346,1.214,2040.3,2039.1,3.9554598]
[1772473928746,1.214,2040.2,2039.1,3.9554598]
[1772473928976,1.86998158,2040.1,2039.0,1.22609122]
[1772473929476,6.77170208,2040.4,2039.1,3.9554598]
[1772473929679,1.214,2040.0,2039.1,3.9554598]
[1772473930090,6.77170208,2040.4,2039.1,3.9554598]
[1772473930290,1.214,2040.3,2039.1,5.18144839]
[1772473930495,3.62822915,2040.3,2039.1,5.18144839]
[1772473930657,3.62822915,2040.3,2039.1,3.9554598]
[1772473930862,4.27987261,2040.0,2038.8,0.001]
[1772473931064,1.214,2039.9,2038.8,0.001]
[1772473932385,2.40550946,2039.6,2038.8,0.001]
[1772473932582,1.86998158,2039.4,2038.5,0.001]
[1772473932783,1.214,2039.3,2038.5,0.001]
[1772473933087,1.214,2039.2,2038.5,0.001]
[1772473933399,2.40005624,2039.7,2038.5,5.18285105]
[1772473933565,1.214,2039.6,2038.5,5.18285105]
[1772473934900,2.43979063,2039.5,2038.6,3.9554598]
[1772473935268,1.22579063,2039.5,2038.6,3.9554598]
[1772473935594,1.214,2039.4,2038.6,3.9554598]
[1772473935790,1.22579063,2039.5,2038.6,3.9554598]
[1772473936007,1.214,2039.3,2038.6,3.9554598]
[1772473936663,1.22579063,2039.5,2038.6,3.9554598]
[1772473936997,1.213,2039.3,2038.7,1.22627164]
[1772473937193,1.213,2039.2,2038.7,1.22627164]
[1772473937693,1.213,2039.3,2038.8,4.08814757]
[1772473938195,1.213,2039.4,2038.8,4.08814757]
[1772473938807,1.22561035,2039.8,2038.9,5.31429892]
[1772473938982,1.212,2039.5,2038.9,5.31429892]
[1772473939188,1.212,2039.8,2039.0,4.08814757]
[1772473939886,1.212,2039.7,2039.0,4.08814757]
[1772473940892,1.22573053,2039.6,2038.8,1.22616535]
[1772473941118,1.22573053,2039.6,2038.7,5.31437629]
[1772473942002,1.22573053,2039.6,2038.8,4.08814757]
[1772473942181,1.211,2039.5,2038.8,4.08814757]
[1772473943188,2.43683265,2039.5,2038.9,1.22615135]
[1772473943394,2.43683265,2039.5,2038.8,5.31432061]
[1772473943608,2.43683265,2039.5,2038.5,1.22734267]
[1772473944504,2.43683265,2039.5,2038.5,5.31549024]
[1772473944813,1.22583265,2039.5,2038.5,5.31549024]
[1772473945025,1.211,2039.4,2038.5,5.31549024]
[1772473945196,1.22591085,2039.3,2038.5,5.31549024]
[1772473945498,1.22591085,2039.3,2038.9,0.001]
[1772473945706,1.211,2039.2,2038.9,0.001]
[1772473945910,1.22591085,2039.3,2038.9,0.001]
[1772473946116,1.211,2039.2,2038.9,0.001]
[1772473947023,1.212,2039.2,2038.9,0.001]
[1772473948830,1.22603109,2039.1,2038.9,0.001]
[1772473949723,1.215,2039.0,2038.9,0.001]
[1772473950318,1.22601829,2039.2,2038.9,0.001]
[1772473950521,1.216,2039.1,2038.9,0.001]
[1772473950728,1.217,2039.1,2038.9,0.001]
[1772473950902,1.22596216,2039.3,2038.9,0.001]
[1772473951110,1.217,2039.2,2038.9,0.001]
[1772473951309,1.217,2039.2,2038.7,0.001]
[1772473951713,1.217,2039.2,2038.7,1.22726796]
[1772473951920,1.217,2039.1,2038.8,4.08814757]
[1772473952101,1.22596216,2039.3,2038.8,4.08814757]
[1772473952301,1.217,2039.0,2038.8,4.08814757]
[1772473953246,1.217,2039.1,2038.8,5.31432275]
[1772473954741,1.217,2039.1,2038.7,0.001]
[1772473955337,1.22609122,2039.0,2038.7,0.001]
[1772473956731,2.4430805,2039.1,2038.7,0.001]
[1772473956932,2.4430805,2039.1,2038.5,0.001]
[1772473958839,1.22,2039.0,2038.5,0.001]
[1772473960459,2.44609122,2039.0,2038.9,0.001]
[1772473960957,1.221,2039.0,2038.7,0.001]
[1772473961165,1.223,2039.0,2038.7,0.001]
[1772473963335,0.002,2039.0,2038.7,4.08914757]
[1772473963542,0.002,2039.3,2038.7,4.08914757]
[1772473963739,1.224,2039.4,2038.8,4.08814757]
[1772473964966,1.222,2039.3,2038.8,4.08814757]
[1772473965133,1.223,2039.4,2038.8,4.08814757]
[1772473965335,0.004,2039.4,2039.0,4.08814757]
[1772473965535,1.225,2039.4,2039.0,4.08814757]
[1772473966863,0.004,2039.4,2039.0,4.08814757]
[1772473967876,2.44673251,2039.6,2039.1,1.22603109]
[1772473968259,2.44673251,2039.6,2039.0,5.31420305]
[1772473970974,1.22573251,2039.6,2039.0,5.31420305]
[1772473971154,1.222,2039.5,2039.0,5.31420305]
[1772473971352,1.222,2039.5,2038.7,5.31127092]
[1772473972352,1.22585074,2039.4,2038.7,5.31127092]
[1772473972666,1.22585074,2039.4,2038.7,5.3113041]
[1772473973259,2.30738317,2039.3,2038.7,0.001]
[1772473973692,1.22585074,2039.4,2038.0,0.001]
[1772473973693,4.17116625,2038.9,2038.0,0.001]
[1772473973990,1.222,2038.8,2038.0,1.22768056]
[1772473974164,1.222,2038.8,2038.0,0.001]
[1772473975384,1.22627164,2038.7,2038.0,4.08503952]
[1772473975707,2.44827164,2038.7,2038.0,4.08503952]
[1772473978089,1.22627164,2038.7,2038.0,4.08503952]
[1772473978297,1.223,2038.6,2038.0,4.08503952]
[1772473978490,1.22627164,2038.7,2038.0,5.3117286]
[1772473978797,1.22627164,2038.7,2038.1,4.08403952]
[1772473978798,1.223,2038.6,2038.1,4.08403952]
[1772473979288,1.223,2038.5,2038.1,4.08403952]
[1772473980609,1.22645211,2038.4,2038.0,0.001]
[1772473981033,1.22597096,2039.2,2038.1,4.08403952]
[1772473981190,1.224,2038.9,2038.2,4.08403952]
[1772473981585,3.48344621,2039.2,2038.2,4.08403952]
[1772473981789,3.47514983,2039.1,2038.2,4.08403952]
[1772473982020,2.25114983,2039.1,2038.2,4.08403952]
[1772473982213,1.224,2039.0,2038.2,4.08403952]
[1772473983217,1.22615135,2038.9,2038.3,1.22651228]
[1772473983416,2.24483675,2038.8,2038.0,0.001]
[1772473985287,3.45840304,2038.7,2038.0,0.001]
[1772473985488,1.224,2038.6,2038.0,0.001]
[1772473985693,3.44975353,2038.6,2038.0,0.001]
[1772473985988,1.22627164,2038.7,2038.0,0.001]
[1772473986207,1.224,2038.6,2038.0,0.001]
[1772473986817,3.44333682,2038.6,2038.0,0.001]
[1772473987015,1.224,2038.5,2038.0,0.001]
[1772473987523,1.224,2038.4,2038.0,0.001]
[1772473987711,1.224,2038.4,2038.2,0.001]
[1772473989225,1.224,2038.4,2037.7,0.001]
[1772473989226,2.41832443,2038.3,2037.7,0.001]
[1772473989395,3.64489689,2038.2,2037.7,0.001]
[1772473989600,2.41832443,2038.1,2037.5,0.001]
[1772473989899,3.63806533,2038.0,2037.5,0.001]
[1772473990318,1.22657246,2038.2,2037.5,4.08503952]
[1772473990625,1.228,2037.9,2037.5,4.08503952]
[1772473991021,1.228,2037.9,2037.5,0.001]
[1772473991612,1.22681322,2037.8,2037.5,0.001]
[1772473992500,1.229,2037.7,2037.5,0.001]
[1772473993215,1.23,2037.6,2037.2,0.001]
[1772473993921,4.90725291,2037.9,2037.2,0.001]
[1772473994122,1.231,2037.8,2037.2,0.001]
[1772473994322,3.62315596,2037.8,2037.2,0.001]
[1772473995029,2.38587088,2037.7,2037.2,0.001]
[1772473995521,2.37854176,2037.6,2036.9,0.001]
[1772473995998,4.84082309,2037.5,2036.9,0.001]
[1772473996810,2.37548547,2037.4,2036.9,0.001]
[1772473997752,1.234,2037.3,2036.9,0.001]
[1772473998347,1.22717455,2037.2,2036.9,0.001]
[1772473999339,7.52936484,2037.7,2036.9,3.82240189]
[1772473999340,1.2269079,2037.7,2036.9,3.82240189]
[1772473999533,1.236,2037.4,2037.1,3.82240189]
[1772474000451,1.22711431,2037.3,2037.1,0.001]
[1772474001261,1.236,2037.2,2037.1,0.001]
[1772474002051,1.22687343,2037.7,2037.1,1.22822717]
[1772474002251,1.22687343,2037.7,2037.1,5.04962906]
[1772474002456,1.237,2037.6,2037.1,5.04962906]
[1772474002653,1.237,2037.9,2037.2,3.82140189]
[1772474003074,1.237,2037.8,2037.2,3.82140189]
[1772474003278,1.237,2037.9,2037.2,3.82140189]
[1772474003474,1.22639195,2038.5,2037.2,3.82140189]
[1772474003771,1.237,2038.4,2037.2,3.82140189]
[1772474004477,2.46350781,2038.4,2037.3,1.22711431]
[1772474004776,1.237,2038.3,2037.4,3.82140189]
[1772474005569,1.237,2038.2,2037.4,3.82140189]
[1772474006646,3.84766102,2038.7,2037.4,3.82140189]
[1772474006647,1.22639195,2038.5,2037.6,3.82140189]
[1772474007280,1.236,2038.4,2037.6,3.82140189]
[1772474008479,1.22639195,2038.5,2037.6,3.82140189]
[1772474008677,1.235,2038.3,2037.6,3.82140189]
[1772474008862,1.235,2038.2,2037.8,3.82140189]
[1772474009778,1.22639195,2038.5,2037.8,3.82140189]
[1772474009949,2.46139195,2038.5,2037.8,3.82140189]
[1772474010155,1.235,2038.4,2037.8,3.82140189]
[1772474010887,2.46149559,2038.4,2037.8,3.82140189]
[1772474011384,1.237,2038.3,2037.8,3.82140189]
[1772474011581,1.237,2038.3,2037.5,3.82140189]
[1772474011792,4.89825417,2038.3,2037.5,3.82140189]
[1772474012090,3.66125417,2038.2,2037.1,5.04963538]
[1772474012466,3.66125417,2038.2,2037.2,3.82140189]
[1772474012872,3.65523759,2038.0,2037.2,3.82140189]
[1772474013497,3.65523759,2038.0,2037.1,0.001]
[1772474014004,3.65523759,2038.0,2037.1,1.22822338]
[1772474014207,1.236,2037.9,2037.2,3.82140189]
[1772474015487,1.236,2037.8,2037.2,5.04857242]
[1772474016774,1.236,2037.8,2037.2,1.22717053]
[1772474016974,4.86705038,2037.8,2037.1,1.22819071]
[1772474017393,14.90653059,2038.2,2037.1,1.22819071]
[1772474017394,11.22662038,2038.2,2037.4,3.82140189]
[1772474017696,11.22658479,2038.2,2037.4,3.82140189]
[1772474017991,1.237,2038.1,2037.4,3.82140189]
[1772474019365,10.0,2038.2,2037.6,3.82140189]
[1772474019587,11.22657489,2038.2,2037.6,3.82140189]
[1772474019793,10.0,2038.2,2037.6,3.82140189]
[1772474020892,11.22659536,2038.2,2037.6,3.82140189]
[1772474021403,11.24,2038.2,2037.6,3.82140189]
[1772474021705,5.79323323,2038.2,2037.9,3.82140189]
[1772474022961,7.01980858,2038.2,2037.7,1.22687343]
[1772474023390,0.002,2038.0,2037.7,1.22687343]
[1772474023589,0.002,2038.0,2037.4,5.04945597]
[1772474023766,0.002,2038.0,2037.5,3.82140189]
[1772474023967,0.002,2038.0,2037.6,1.057]
[1772474024167,0.002,2038.0,2037.7,3.82140189]
[1772474025182,0.002,2038.3,2037.7,3.82140189]
[1772474025590,0.002,2038.3,2037.9,3.82140189]
[1772474028293,0.002,2038.3,2037.6,6.28554236]
[1772474028473,0.002,2038.3,2037.7,8.90902463]
[1772474028674,0.002,2038.3,2037.8,4.00166893]
[1772474030297,0.002,2038.3,2037.9,1.22675303]
[1772474031297,0.002,2038.3,2038.0,4.00166893]
[1772474031501,0.002,2038.8,2038.1,4.00166893]
[1772474031670,0.002,2039.0,2038.2,4.00166893]
[1772474031870,0.32472828,2039.2,2038.4,4.00166893]